fUSD/lending_fUSD_20250128
["ID","MTS","AMOUNT","RATE_DAILY","PERIOD"]
[350751178,1738103446440,-500.0,0.00019178,2]
[350751179,1738103446451,-500.0,0.00019178,2]
[350751180,1738103446461,-500.0,0.00019178,2]
[350751181,1738103446470,-500.0,0.00019178,2]
[350751182,1738103446479,-500.0,0.00019178,2]
[350751183,1738103446488,-500.0,0.00019178,2]
[350751184,1738103446497,-500.0,0.00019178,2]
[350751185,1738103446507,-500.0,0.00019178,2]
[350751186,1738103446516,-500.0,0.00019178,2]
[350751187,1738103446526,-500.0,0.00019178,2]
[350751188,1738103446536,-503.90743975,0.00019178,2]
[350751189,1738103446546,-500.0,0.00019178,2]
[350751190,1738103446556,-500.0,0.00019178,2]
[350751191,1738103446566,-500.0,0.00019178,2]
[350751192,1738103446575,-500.0,0.00019178,2]
[350751193,1738103446584,-500.0,0.00019178,2]
[350751194,1738103446596,-500.0,0.00019178,2]
[350751195,1738103446605,-500.0,0.00019178,2]
[350751196,1738103446614,-500.0,0.00019178,2]
[350751197,1738103446623,-500.0,0.00019178,2]
[350751198,1738103446633,-500.0,0.00019178,2]
[350751199,1738103446643,-500.0,0.00019178,2]
[350751200,1738103446653,-500.0,0.00019178,2]
[350751201,1738103446662,-500.0,0.00019178,2]
[350751202,1738103446671,-500.0,0.00019178,2]
[350751203,1738103446682,-500.0,0.00019178,2]
[350751204,1738103446692,-500.0,0.00019178,2]
[350751205,1738103446702,-391.41697422,0.00019178,2]
[350751206,1738103446711,-500.0,0.00019178,2]
[350751207,1738103446720,-500.0,0.00019178,2]
[350751208,1738103446730,-500.0,0.00019178,2]
[350751209,1738103446741,-500.0,0.00019178,2]
[350751210,1738103446750,-500.0,0.00019178,2]
[350751211,1738103446818,-500.0,0.00019178,2]
[350751212,1738103446828,-500.0,0.00019178,2]
[350751213,1738103446837,-436.08,0.00019178,2]
[350751214,1738103446846,-500.0,0.00019178,2]
[350751215,1738103446855,-583.70811169,0.00019178,2]
[350751216,1738103446864,-500.0,0.00019178,2]
[350751217,1738103446874,-500.0,0.00019178,2]
[350751218,1738103446883,-500.0,0.00019178,2]
[350751219,1738103446892,-500.0,0.00019178,2]
[350751220,1738103446902,-500.0,0.00019178,2]
[350751221,1738103446911,-482.53,0.00019178,2]
[350751222,1738103446921,-500.0,0.00019178,2]
[350751223,1738103446931,-500.0,0.00019178,2]
[350751224,1738103446941,-500.0,0.00019178,2]
[350751225,1738103446951,-500.0,0.00019178,2]
[350751226,1738103446961,-500.0,0.00019178,2]
[350751227,1738103446970,-500.0,0.00019178,2]
[350751228,1738103446979,-500.0,0.00019178,2]
[350751229,1738103446988,-500.0,0.00019178,2]
[350751230,1738103446997,-500.0,0.00019178,2]
[350751231,1738103447006,-500.0,0.00019178,2]
[350751232,1738103447015,-500.0,0.00019178,2]
[350751233,1738103447024,-500.0,0.00019178,2]
[350751234,1738103447034,-500.0,0.00019178,2]
[350751235,1738103447043,-500.0,0.00019178,2]
[350751236,1738103447052,-500.0,0.00019178,2]
[350751237,1738103447061,-500.0,0.00019178,2]
[350751238,1738103447070,-500.0,0.00019178,2]
[350751239,1738103447079,-500.0,0.00019178,2]
[350751240,1738103447088,-500.0,0.00019178,2]
[350751241,1738103447097,-500.0,0.00019178,2]
[350751242,1738103447106,-500.0,0.00019178,2]
[350751243,1738103447115,-500.0,0.00019178,2]
[350751244,1738103447125,-500.0,0.00019178,2]
[350751245,1738103447135,-500.0,0.00019178,2]
[350751246,1738103447145,-500.0,0.00019178,2]
[350751247,1738103447154,-500.0,0.00019178,2]
[350751248,1738103447164,-500.0,0.00019178,2]
[350751249,1738103447173,-500.0,0.00019178,2]
[350751250,1738103447182,-500.0,0.00019178,2]
[350751251,1738103447190,-500.0,0.00019178,2]
[350751252,1738103447201,-500.0,0.00019178,2]
[350751253,1738103447212,-500.0,0.00019178,2]
[350751254,1738103447222,-500.0,0.00019178,2]
[350751255,1738103447232,-500.0,0.00019178,2]
[350751256,1738103447244,-500.0,0.00019178,2]
[350751257,1738103447254,-500.0,0.00019178,2]
[350751258,1738103447263,-663.78,0.00019178,2]
[350751259,1738103447273,-500.0,0.00019178,2]
[350751260,1738103447283,-500.0,0.00019178,2]
[350751261,1738103447293,-663.78,0.00019178,2]
[350751262,1738103447302,-500.0,0.00019178,2]
[350751263,1738103447311,-500.0,0.00019178,2]
[350751264,1738103447322,-663.78,0.00019178,2]
[350751265,1738103447331,-500.0,0.00019178,2]
[350751266,1738103447342,-462.18799352,0.00019178,2]
[350751267,1738103447351,-663.78,0.00019178,2]
[350751268,1738103447361,-663.78,0.00019178,2]
[350751269,1738103447370,-663.78,0.00019178,2]
[350751270,1738103447379,-663.78,0.00019178,2]
[350751271,1738103447389,-663.78,0.00019178,2]
[350751272,1738103447398,-663.78,0.00019178,2]
[350751273,1738103447406,-500.0,0.00019178,2]
[350751274,1738103447415,-663.78,0.00019178,2]
[350751275,1738103447425,-500.0,0.00019178,2]
[350751276,1738103447435,-663.78,0.00019178,2]
[350751277,1738103447446,-500.0,0.00019178,2]
[350751278,1738103447457,-663.78,0.00019178,2]
[350751279,1738103447466,-500.0,0.00019178,2]
[350751280,1738103447475,-500.0,0.00019178,2]
[350751281,1738103447484,-663.78,0.00019178,2]
[350751282,1738103447493,-500.0,0.00019178,2]
[350751283,1738103447502,-663.78,0.00019178,2]
[350751284,1738103447511,-500.0,0.00019178,2]
[350751285,1738103447520,-663.78,0.00019178,2]
[350751286,1738103447529,-500.0,0.00019178,2]
[350751287,1738103447538,-500.0,0.00019178,2]
[350751288,1738103447547,-663.78,0.00019178,2]
[350751289,1738103447556,-500.0,0.00019178,2]
[350751290,1738103447565,-500.0,0.00019178,2]
[350751291,1738103447574,-663.78,0.00019178,2]
[350751292,1738103447583,-500.0,0.00019178,2]
[350751293,1738103447594,-500.0,0.00019178,2]
[350751294,1738103447605,-663.78,0.00019178,2]
[350751295,1738103447614,-500.0,0.00019178,2]
[350751296,1738103447623,-500.0,0.00019178,2]
[350751297,1738103447633,-663.78,0.00019178,2]
[350751298,1738103447642,-500.0,0.00019178,2]
[350751299,1738103447651,-663.78,0.00019178,2]
[350751300,1738103447660,-500.0,0.00019178,2]
[350751301,1738103447670,-663.78,0.00019178,2]
[350751302,1738103447679,-663.78,0.00019178,2]
[350751303,1738103447688,-663.78,0.00019178,2]
[350751304,1738103447698,-663.87162468,0.00019178,2]
[350751305,1738103447707,-6225.29,0.00019178,2]
[350751306,1738103447716,-6225.29,0.00019178,2]
[350751307,1738103447726,-6225.29,0.00019178,2]
[350751308,1738103447736,-6225.29,0.00019178,2]
[350751309,1738103447746,-6225.29,0.00019178,2]
[350751310,1738103447755,-6225.29,0.00019178,2]
[350751311,1738103447764,-6225.29,0.00019178,2]
[350751312,1738103447773,-6225.29,0.00019178,2]
[350751313,1738103447782,-500.0,0.00019178,2]
[350751314,1738103447791,-6225.29,0.00019178,2]
[350751315,1738103447800,-500.0,0.00019178,2]
[350751316,1738103447810,-6225.29,0.00019178,2]
[350751317,1738103447819,-500.0,0.00019178,2]
[350751318,1738103447828,-500.0,0.00019178,2]
[350751319,1738103447837,-6225.29,0.00019178,2]
[350751320,1738103447846,-500.0,0.00019178,2]
[350751321,1738103447855,-500.0,0.00019178,2]
[350751322,1738103447864,-6225.29,0.00019178,2]
[350751323,1738103447873,-500.0,0.00019178,2]
[350751324,1738103447882,-500.0,0.00019178,2]
[350751325,1738103447892,-6225.29,0.00019178,2]
[350751326,1738103447902,-500.0,0.00019178,2]
[350751327,1738103447912,-500.0,0.00019178,2]
[350751328,1738103447923,-6225.29,0.00019178,2]
[350751329,1738103447937,-500.0,0.00019178,2]
[350751330,1738103447947,-491.97080317,0.00019178,2]
[350751331,1738103447983,-4439.60000001,0.00019178,2]
[350751332,1738103447995,-506.0380948,0.00019178,2]
[350751333,1738103448006,-787.68110202,0.00019178,2]
[350751334,1738103448015,-360.61088796,0.00019178,2]
[350751335,1738103448027,-139.38911204,0.00019178,2]
[350751336,1738103448037,-180.32088896,0.00019178,2]
[350751337,1738103448053,-23900.0,0.00018335,2]
[350751338,1738103448068,-319.67911104,0.00019178,2]
[350751339,1738103448078,-6225.29,0.00019178,2]
[350751340,1738103448087,-579.32245733,0.00019178,2]
[350751341,1738103448097,-6225.29,0.00019178,2]
[350751342,1738103448107,-500.0,0.00019178,2]
[350751343,1738103448117,-6225.29,0.00019178,2]
[350751344,1738103448133,-500.0,0.00019178,2]
[350751345,1738103448142,-6225.29,0.00019178,2]
[350751346,1738103448152,-1221.06,0.00019178,2]
[350751347,1738103448161,-368.77843163,0.00019178,2]
[350751348,1738103448306,-131.22156837,0.00019178,2]
[350751349,1738103448316,-4858.2646214,0.00019178,2]
[350751350,1738103448352,-287.5747651,0.00019178,2]
[350751351,1738103448541,-2117.10513409,0.00019078,2]
[350751352,1738103448552,-1556.349985,0.00019078,2]
[350751353,1738103448597,-153.01967247,0.00019078,2]
[350751354,1738103448608,-1047.5465,0.00019078,2]
[350751358,1738103490736,150.0,0.00020832,120]
[350751359,1738103550708,150.0,0.00020428,120]
[350751360,1738103591721,500.0,0.00022903,120]
[350751361,1738103595323,2000.0,0.00022903,120]
[350751362,1738103599403,549.486388,0.00022903,120]
[350751363,1738103604832,200.0,0.00022903,120]
[350751364,1738103611320,150.0,0.000224,120]
[350751365,1738103613304,249.0,0.00023,120]
[350751367,1738103670719,150.0,0.00020643,120]
[350751368,1738103703194,150.0,0.0001801,100]
[350751369,1738103730725,150.0,0.00020423,120]
[350751370,1738103790784,150.0,0.0002194,120]
[350751371,1738103851267,150.0,0.00022675,120]
[350751372,1738103910739,150.0,0.00020837,120]
[350751373,1738103918037,156.09,0.00010137,2]
[350751376,1738103970786,150.0,0.00022016,120]
[350751377,1738104030853,150.0,0.00021234,120]
[350751379,1738104090729,150.0,0.00020411,120]
[350751380,1738104150715,150.0,0.0002083,120]
[350751381,1738104194492,500.0,0.00022999,120]
[350751382,1738104197456,2000.0,0.00022999,120]
[350751383,1738104204770,200.0,0.00022999,120]
[350751384,1738104210735,150.0,0.00021718,120]
[350751385,1738104271412,150.0,0.00022787,120]
[350751386,1738104390737,150.0,0.00022074,120]
[350751388,1738104423356,1950.9,0.00023,120]
[350751389,1738104450833,150.0,0.00021654,120]
[350751390,1738104473106,151.52,0.00017737,30]
[350751391,1738104510737,150.0,0.00020707,120]
[350751392,1738104566124,-161.4746,0.00014487,2]
[350751393,1738104570720,150.0,0.00020429,120]
[350751394,1738104574864,891.012907,0.00023,120]
[350751395,1738104630718,150.0,0.00022349,120]
[350751398,1738104631771,-38.9854,0.00014487,2]
[350751399,1738104631783,-526.77,0.00016043,2]
[350751400,1738104631794,-1307.0,0.000164,2]
[350751401,1738104631806,-156.09,0.00017184,2]
[350751402,1738104631819,-500.0,0.00017384,2]
[350751403,1738104631831,-500.0,0.00017384,2]
[350751404,1738104631844,-1769.84,0.00017444,2]
[350751405,1738104631858,-5945.84306597,0.0001758,2]
[350751406,1738104631877,-2660.33978989,0.0001758,2]
[350751407,1738104631952,-329.76043009,0.0001758,2]
[350751408,1738104632005,-1409.33676583,0.0001758,2]
[350751409,1738104632049,-1044.9439,0.0001758,2]
[350751410,1738104632299,-1405.29019499,0.0001758,2]
[350751412,1738104632312,-2613.19026168,0.0001758,2]
[350751448,1738104637745,-4031.49156318,0.0001758,2]
[350751449,1738104637905,-1922.50402837,0.0001758,2]
[350751450,1738104637917,-172.48,0.00017612,2]
[350751451,1738104637931,-1973.62,0.00017625,2]
[350751452,1738104637948,-297.49,0.00017791,2]
[350751453,1738104637962,-150.0,0.00017808,2]
[350751454,1738104637974,-150.0,0.00017824,2]
[350751455,1738104637987,-150.0,0.00017842,2]
[350751456,1738104638001,-666.47264454,0.00018005,2]
[350751457,1738104638016,-177.30735546,0.00018005,2]
[350751458,1738104638028,-496.41,0.00018047,2]
[350751459,1738104638039,-157.66,0.00018082,2]
[350751460,1738104638052,-658.11086237,0.00018093,2]
[350751461,1738104638071,-352.80035475,0.00018093,2]
[350751462,1738104638087,-272.31772944,0.00018093,2]
[350751518,1738104642775,-915.32998,0.0001748,2]
[350751519,1738104642828,-3116.16162,0.0001748,2]
[350751520,1738104642838,-1000.0,0.00017846,2]
[350751521,1738104642849,-2289.47105344,0.00018093,2]
[350751522,1738104642859,-3889.19,0.00018108,2]
[350751523,1738104642873,-1152.42,0.00018108,2]
[350751524,1738104642884,-526.77,0.00018307,2]
[350751525,1738104642894,-500.0,0.0001848,2]
[350751526,1738104642904,-150.0,0.00018532,2]
[350751527,1738104642914,-6604.35,0.00018533,2]
[350751528,1738104642926,-9999.99,0.00018533,2]
[350751529,1738104642935,-3420.72999681,0.00018533,2]
[350751538,1738104645839,-1591.15001,0.00018533,2]
[350751539,1738104645883,-1825.16999319,0.00018533,2]
[350751540,1738104645893,-299.99,0.00018533,4]
[350751541,1738104645904,-2123.81,0.00018533,2]
[350751542,1738104645915,-9999.99,0.00018533,2]
[350751543,1738104645925,-150.99,0.00018533,2]
[350751544,1738104645934,-606.40496806,0.00018533,2]
[350751545,1738104645951,-393.58503194,0.00018533,2]
[350751546,1738104645960,-150.99,0.00018533,2]
[350751547,1738104645970,-446.43749379,0.000189,2]
[350751548,1738104646090,-660.71880001,0.000189,2]
[350751549,1738104646134,-2835.5165705,0.000189,2]
[350751550,1738104646145,-473.95,0.00018904,9]
[350751551,1738104646155,-158.47563007,0.00018978,2]
[350751552,1738104646164,-265.41,0.00018986,2]
[350751553,1738104646174,-646.28484,0.0001899,2]
[350751554,1738104646184,-5000.0,0.00019078,2]
[350751555,1738104646194,-556.846,0.00019078,2]
[350751556,1738104646205,-220.5668735,0.00019078,2]
[350751557,1738104646214,-161.51137772,0.00019078,2]
[350751558,1738104646224,-101634.52279838,0.00019078,2]
[350751559,1738104646234,-739.85764681,0.00019078,2]
[350751560,1738104646244,-690.5970345,0.00019078,2]
[350751561,1738104646254,-5129.4609,0.00019078,2]
[350751562,1738104646264,-32653.15962111,0.00019078,2]
[350751566,1738104691439,150.0,0.00021772,120]
[350751568,1738104751271,150.0,0.00021264,120]
[350751569,1738104792347,500.0,0.00022999,120]
[350751570,1738104795087,2000.0,0.00022999,120]
[350751571,1738104803340,200.0,0.00022999,120]
[350751572,1738104811308,150.0,0.0002063,120]
[350751573,1738104870890,150.0,0.00021355,120]
[350751574,1738104877138,156.44,0.00010137,2]
[350751576,1738104930832,150.0,0.00021073,120]
[350751577,1738104991305,150.0,0.00022133,120]
[350751578,1738105050706,150.0,0.00022797,120]
[350751581,1738105291054,150.0,0.00021072,120]
[350751582,1738105350758,150.0,0.00022226,120]
[350751583,1738105391044,314.477522,0.00022999,120]
[350751584,1738105393109,1826.329397,0.00022999,120]
[350751586,1738105410692,150.0,0.00022507,120]
[350751587,1738105470714,150.0,0.00022843,120]
[350751588,1738105531641,150.0,0.00021433,120]
[350751589,1738105590720,150.0,0.00021962,120]
[350751593,1738105650729,150.0,0.00022813,120]
[350751596,1738105710722,150.0,0.0002114,120]
[350751598,1738105769141,-838.98919435,0.00013001,7]
[350751599,1738105769163,-469.36001594,0.0001391,2]
[350751600,1738105770781,150.0,0.00021803,120]
[350751601,1738105830790,150.0,0.00020496,120]
[350751619,1738105832010,-588.63998406,0.0001391,2]
[350751620,1738105832020,-150.0,0.00014301,2]
[350751621,1738105832031,-150.0,0.00014301,2]
[350751622,1738105832040,-1058.0,0.00014642,2]
[350751623,1738105832050,-1058.0,0.00015413,2]
[350751624,1738105832059,-567.4486661,0.00016,6]
[350751625,1738105832071,-1058.0,0.00016224,2]
[350751626,1738105832081,-486.15,0.00016269,2]
[350751627,1738105832090,-1058.0,0.00017078,2]
[350751628,1738105832099,-500.0,0.00017384,2]
[350751629,1738105832109,-500.0,0.00017384,2]
[350751630,1738105832119,-605.89,0.00017391,2]
[350751631,1738105832128,-2000.0,0.00017423,2]
[350751632,1738105832137,-1000.0,0.0001754,2]
[350751633,1738105832147,-7997.96732483,0.00017815,2]
[350751634,1738105832159,-1242.1416025,0.00017815,2]
[350751635,1738105832171,-11163.45854427,0.00017815,2]
[350751636,1738105832268,-3486.4325284,0.00017815,2]
[350751637,1738105832278,-1058.0,0.00017932,2]
[350751638,1738105832287,-150.0,0.00017932,2]
[350751639,1738105832298,-150.0,0.00017932,2]
[350751640,1738105832308,-173.01,0.00017978,2]
[350751641,1738105832325,-800.0,0.00018,8]
[350751642,1738105832335,-151.52,0.00018002,30]
[350751643,1738105832345,-153.5,0.00018011,2]
[350751644,1738105832355,-277.37,0.0001805,2]
[350751645,1738105832366,-840.16,0.00018116,2]
[350751646,1738105832377,-597.87490715,0.00018298,2]
[350751647,1738105832387,-500.0,0.0001848,2]
[350751648,1738105832400,-486.15,0.00018533,2]
[350751649,1738105832410,-300.0,0.00018533,2]
[350751650,1738105832422,-2062.47,0.00018533,2]
[350751651,1738105832431,-299.99,0.00018533,4]
[350751652,1738105832443,-2917.77,0.00018533,5]
[350751653,1738105832453,-150.99,0.00018533,2]
[350751678,1738105832691,-999.99,0.00018533,2]
[350751680,1738105832701,-6001.84,0.00018533,2]
[350751682,1738105832711,-9999.99,0.00018533,2]
[350751684,1738105832720,-150.99,0.00018533,2]
[350751686,1738105832730,-150.0,0.00018609,2]
[350751688,1738105832739,-439.932,0.00018609,2]
[350751690,1738105832748,-3906.0,0.00018609,2]
[350751692,1738105832763,-1006.252,0.00018609,2]
[350751694,1738105832773,-171.98,0.00018765,2]
[350751696,1738105832783,-1058.0,0.00018828,2]
[350751699,1738105832794,-181.0,0.00018833,2]
[350751701,1738105832804,-181.0,0.00018833,2]
[350751703,1738105832814,-200.0,0.00018884,2]
[350751705,1738105832824,-2500.0,0.0001889,2]
[350751707,1738105832834,-3811.25043549,0.000189,2]
[350751709,1738105832844,-300.0,0.00018932,2]
[350751711,1738105832854,-876.14,0.00018932,2]
[350751713,1738105832863,-596.2,0.00018932,2]
[350751715,1738105832873,-150.0,0.00018932,2]
[350751717,1738105832883,-150.0,0.00018932,2]
[350751719,1738105832893,-300.0,0.00018932,2]
[350751721,1738105832902,-150.68,0.00018932,2]
[350751723,1738105832912,-150.0,0.00018932,2]
[350751725,1738105832922,-150.0,0.00018932,2]
[350751727,1738105832931,-438.16,0.00018932,2]
[350751729,1738105832941,-150.0,0.00018932,2]
[350751731,1738105832951,-301.37,0.00018932,2]
[350751733,1738105832961,-445.477,0.00019078,2]
[350751735,1738105832970,-196.564,0.00019078,2]
[350751737,1738105832980,-171.62523414,0.00019078,2]
[350751739,1738105832990,-161.51137772,0.00019078,2]
[350751741,1738105833000,-460.398023,0.00019078,2]
[350751743,1738105833009,-493.23843122,0.00019078,2]
[350751745,1738105833020,-214.47331436,0.00019078,2]
[350751747,1738105833029,-22901.8403,0.00019078,2]
[350751749,1738105833039,-34014.41292277,0.00019078,2]
[350751751,1738105833055,-2153.37188006,0.00019078,2]
[350751764,1738105833165,-13351.40782066,0.00019078,2]
[350751769,1738105838094,-1641.99463224,0.00019078,2]
[350751770,1738105838107,-7395.95158605,0.00019078,2]
[350751775,1738105839986,-2610.2555878,0.00019078,2]
[350751776,1738105839999,-644.8158677,0.00019078,2]
[350751777,1738105840010,-507.2947077,0.00019078,2]
[350751778,1738105840048,-3553.97594792,0.00019078,2]
[350751821,1738105846090,-434.58328901,0.00019078,2]
[350751822,1738105846158,-2502.1756668,0.00019078,2]
[350751823,1738105846222,-1418.50320367,0.00019078,2]
[350751825,1738105890727,150.0,0.00021515,120]
[350751829,1738105951243,150.0,0.00021323,120]
[350751830,1738106011304,150.0,0.00021263,120]
[350751831,1738106070797,150.0,0.00020611,120]
[350751833,1738106130756,150.0,0.00021742,120]
[350751836,1738106170025,151.52,0.00017648,30]
[350751838,1738106191454,150.0,0.00021666,120]
[350751839,1738106309809,150.0,0.00023,120]
[350751840,1738106310723,150.0,0.00021782,120]
[350751841,1738106370711,150.0,0.00020829,120]
[350751842,1738106403810,4670.79143738,0.00023,120]
[350751844,1738106470749,2215.33464977,0.00019178,120]
[350751845,1738106591529,500.0,0.00022999,120]
[350751846,1738106594194,2000.0,0.00022693,120]
[350751848,1738106598209,219.788361,0.00022999,120]
[350751849,1738106603671,200.0,0.00022868,120]
[350751850,1738106631523,161.63,0.00010137,2]
[350751852,1738106726620,103534.88513348,0.00023,120]
[350751861,1738106752901,5293.30935763,0.00022,120]
[350751870,1738106763730,-6558.28478959,0.0001,2]
[350751873,1738106830020,16510.62169672,0.00021,120]
[350751874,1738106830763,823.86352359,0.00022,120]
[350751875,1738106861035,-276.88990036,0.0001,2]
[350751880,1738106877038,-11456.82531005,0.0001,2]
[350751882,1738106895683,-113847.596487,0.00013001,7]
[350751883,1738106895708,-26531.0319399,0.00013001,7]
[350751887,1738106953128,-2650.4832698,0.0001,2]
[350751888,1738106958238,-14000.0,0.0001,2]
[350751889,1738106994282,151.52,0.00016658,30]
[350751903,1738107032192,-150.0,9.999e-05,2]
[350751905,1738107032203,-4280.94296422,0.0001,2]
[350751906,1738107032212,-93699.05703578,0.0001,2]
[350751907,1738107032225,-12012.0,0.0001,2]
[350751908,1738107032237,-289.29859837,0.0001,2]
[350751909,1738107032272,-4708.87787733,0.0001,2]
[350751910,1738107032317,-3409.40237569,0.0001,2]
[350751911,1738107032457,-514.98783939,0.0001,2]
[350751912,1738107032470,-1862.130001,0.0001,2]
[350751913,1738107032481,-1919.85,0.0001,2]
[350751914,1738107032494,-103750.0,0.0001,2]
[350751915,1738107032505,-5110.24358885,0.0001,2]
[350751916,1738107032517,-5056.95675139,0.0001,2]
[350751917,1738107032528,-1042.75870001,0.0001,2]
[350751918,1738107032544,-142912.8356228,0.0001,2]
[350751919,1738107032687,-469.31294683,0.0001,2]
[350751920,1738107032699,-575.115,0.0001,2]
[350751958,1738107038074,-2075.43690109,0.0001,2]
[350751959,1738107038087,-1235.0,0.0001,2]
[350751960,1738107038192,-1035.5,0.0001,2]
[350751961,1738107038204,-505943.45873544,0.0001,2]
[350751962,1738107038214,-154.35486899,0.0001,2]
[350751963,1738107038224,-200.0,0.0001,3]
[350751964,1738107038234,-248.87358001,0.000101,2]
[350751965,1738107038244,-528.07354905,0.000102,2]
[350751966,1738107038254,-213.60150743,0.000108,2]
[350751967,1738107038263,-171.62523414,0.000109,2]
[350751968,1738107038273,-255.0,0.00010999,2]
[350751969,1738107038283,-12281.20783848,0.00011,2]
[350751970,1738107038292,-22099.0,0.00011761,2]
[350751971,1738107038302,-500.0,0.000118,4]
[350751972,1738107038312,-500.0,0.00011973,2]
[350751973,1738107038322,-45263.57846122,0.00012,2]
[350751974,1738107038333,-190820.00000002,0.00012,2]
[350751975,1738107038345,-178791.38876496,0.00012,2]
[350751976,1738107038357,-811.5296639,0.00012,2]
[350751984,1738107038721,-10384.0,0.00012,2]
[350751988,1738107040201,-800.0,0.000119,4]
[350751989,1738107040210,-26626.73516892,0.00012,2]
[350751990,1738107040223,-2220.6271795,0.00012,2]
[350751991,1738107040606,-2478.03798346,0.00012,2]
[350751992,1738107040661,-306.629344,0.00012,2]
[350752000,1738107043138,-1642.5,0.00012,2]
[350752028,1738107046823,-65615.03019724,0.00012,2]
[350752030,1738107046839,-125864.1984,0.00012,2]
[350752033,1738107046854,-72510.0,0.00012,2]
[350752035,1738107046868,-43200.90776407,0.00012,2]
[350752038,1738107046880,-1237.2,0.00012,2]
[350752156,1738107048219,-327.32699998,0.00012,2]
[350752159,1738107048244,-20125.4671973,0.00012,2]
[350752161,1738107048255,-7656.201684,0.00012,2]
[350752164,1738107048268,-16528.50997184,0.00012,2]
[350752166,1738107048280,-10689.6419,0.00012,2]
[350752169,1738107048301,-681.30224368,0.00012,2]
[350752174,1738107048347,-25.3715731,0.00012,2]
[350753193,1738107192627,338.830643,0.00022999,120]
[350753194,1738107195579,2000.0,0.00022868,120]
[350753195,1738107204568,200.0,0.00022999,120]
[350753197,1738107339787,4000.69339941,5e-05,2]
[350753199,1738107508302,-488.80442735,0.000119,2]
[350753200,1738107508326,-174.3259859,0.000119,2]
[350753201,1738107508349,-4583.39085425,0.00011973,2]
[350753202,1738107508371,-166.93886948,0.00011973,2]
[350753203,1738107508394,-151.18398976,0.00011973,2]
[350753204,1738107508416,-500.72027652,0.00011973,2]
[350753205,1738107508440,-500.0,0.00011973,2]
[350753206,1738107508464,-300.0,0.00011998,2]
[350753207,1738107508490,-563.93,0.00011999,2]
[350753208,1738107508514,-150.0,0.00011999,2]
[350753209,1738107508536,-261.437,0.00011999,2]
[350753210,1738107508560,-2159.26859674,0.00012,2]
[350753212,1738107793664,2000.0,0.00022999,120]
[350753213,1738107802312,200.0,0.00022999,120]
[350753215,1738107902258,151.52,0.00016658,30]
[350753223,1738108171140,-442.01,0.00010137,2]
[350753224,1738108171167,-369.75546819,0.00011542,2]
[350753225,1738108171190,-176.027,0.0001176,2]
[350753226,1738108171212,-308.12905381,0.0001176,2]
[350753243,1738108232446,-357.664498,0.00011484,2]
[350753244,1738108232457,-935.17294619,0.0001176,2]
[350753245,1738108232467,-914.71881381,0.00011873,2]
[350753246,1738108232477,-914.71881379,0.00011899,2]
[350753247,1738108232487,-439.92398457,0.000119,2]
[350753248,1738108232772,-174.32598588,0.000119,2]
[350753249,1738108232796,-2108.70983414,0.000119,2]
[350753250,1738108232816,-500.0,0.00011973,2]
[350753251,1738108232826,-150.0,0.00011999,2]
[350753252,1738108232836,-92732.76512333,0.00012,2]